[Event "*** Titled Tuesday 3|2 Blitz"]
[Site "Chess.com"]
[Date "2016.02.02"]
[Round "3"]
[White "swayamsm"]
[Black "Matibar"]
[Result "0-1"]
[WhiteElo "2561"]
[BlackElo "2495"]
[TimeControl "180+2"]
[EndTime "11:37:40 PST"]
[Termination "Matibar won by resignation"]

1. d4 {[%clk 0:03:01.9]} 1... f5 {[%clk 0:02:58.5]} 2. g3 {[%clk 0:02:59.7]}
2... Nf6 {[%clk 0:02:58.9]} 3. Bg2 {[%clk 0:03:01.6]} 3... g6 {[%clk 0:03:00.5]}
4. Nh3 {[%clk 0:03:00.6]} 4... Bg7 {[%clk 0:02:56.1]} 5. Nf4 {[%clk 0:02:56.8]}
5... Nc6 {[%clk 0:02:57.5]} 6. O-O {[%clk 0:02:56.3]} 6... d6 {[%clk 0:02:54.9]}
7. Nc3 {[%clk 0:02:37.5]} 7... e5 {[%clk 0:02:47.4]} 8. dxe5 {[%clk 0:02:33.8]}
8... dxe5 {[%clk 0:02:43.2]} 9. Qxd8+ {[%clk 0:02:29.4]} 9... Nxd8 {[%clk
0:02:37.4]} 10. Nfd5 {[%clk 0:02:28.7]} 10... Nxd5 {[%clk 0:02:37.3]} 11. Nxd5
{[%clk 0:02:30.6]} 11... Ne6 {[%clk 0:02:38]} 12. Be3 {[%clk 0:02:15.3]} 12...
c6 {[%clk 0:02:21.5]} 13. Nc3 {[%clk 0:02:16.1]} 13... Nd4 {[%clk 0:01:59.5]}
14. Rac1 {[%clk 0:02:08.6]} 14... Be6 {[%clk 0:02:00]} 15. Bd2 {[%clk 0:01:44]}
15... O-O-O {[%clk 0:01:59.9]} 16. Rfd1 {[%clk 0:01:41.4]} 16... Bc4 {[%clk
0:01:52.3]} 17. Bg5 {[%clk 0:01:26.2]} 17... Nxe2+ {[%clk 0:01:49.3]} 18. Nxe2
{[%clk 0:01:22.9]} 18... Rxd1+ {[%clk 0:01:50.1]} 19. Rxd1 {[%clk 0:01:24.8]}
19... Bxe2 {[%clk 0:01:51.7]} 20. Re1 {[%clk 0:01:25.9]} 20... Bc4 {[%clk
0:01:52.1]} 21. b3 {[%clk 0:01:26.9]} 21... Bf7 {[%clk 0:01:52.5]} 22. h4 {[%clk
0:01:21.7]} 22... Kc7 {[%clk 0:01:47.6]} 23. Rd1 {[%clk 0:01:19.4]} 23... Re8
{[%clk 0:01:46.4]} 24. Be3 {[%clk 0:01:20.2]} 24... b6 {[%clk 0:01:46.9]} 25.
Bg5 {[%clk 0:01:16.6]} 25... h6 {[%clk 0:01:47.4]} 26. Be3 {[%clk 0:01:17.2]}
26... Re7 {[%clk 0:01:47.8]} 27. a4 {[%clk 0:01:14.4]} 27... Rd7 {[%clk
0:01:48.9]} 28. Rxd7+ {[%clk 0:01:14.9]} 28... Kxd7 {[%clk 0:01:49.7]} 29. a5
{[%clk 0:01:16.8]} 29... Kc7 {[%clk 0:01:50.8]} 30. axb6+ {[%clk 0:01:14.3]}
30... axb6 {[%clk 0:01:52.7]} 31. Kf1 {[%clk 0:01:15.8]} 31... h5 {[%clk
0:01:52.6]} 32. Ke2 {[%clk 0:01:16.6]} 32... Bf6 {[%clk 0:01:53.6]} 33. Kd3
{[%clk 0:01:09.2]} 33... Bd5 {[%clk 0:01:54.3]} 34. f3 {[%clk 0:01:04.3]} 34...
c5 {[%clk 0:01:50.1]} 35. c4 {[%clk 0:01:05.5]} 35... Bc6 {[%clk 0:01:50.9]} 36.
Ke2 {[%clk 0:01:06.4]} 36... Kd6 {[%clk 0:01:50.5]} 37. Kf2 {[%clk 0:01:02.4]}
37... Ke6 {[%clk 0:01:49.3]} 38. Bf1 {[%clk 0:01:03.5]} 38... f4 {[%clk
0:01:45]} 39. gxf4 {[%clk 0:00:46]} 39... Bxh4+ {[%clk 0:01:45.2]} 40. Ke2
{[%clk 0:00:40.7]} 40... Bg3 {[%clk 0:01:42.5]} 41. Bh3+ {[%clk 0:00:41]} 41...
Kf6 {[%clk 0:01:43.3]} 42. fxe5+ {[%clk 0:00:42.5]} 42... Bxe5 {[%clk 0:01:45]}
43. Bh6 {[%clk 0:00:34.9]} 43... g5 {[%clk 0:01:36.1]} 44. Bc8 {[%clk
0:00:33.6]} 44... Bd6 {[%clk 0:01:34.7]} 45. f4 {[%clk 0:00:26.8]} 45... gxf4
{[%clk 0:01:27.7]} 46. Kf2 {[%clk 0:00:21.2]} 46... Kg6 {[%clk 0:01:27.1]} 0-1

[Event "*** Titled Tuesday 3|2 Blitz"]
[Site "Chess.com"]
[Date "2016.02.02"]
[Round "3"]
[White "HansCoolNiemann"]
[Black "LawrenceTrent"]
[Result "1-0"]
[WhiteElo "2221"]
[BlackElo "2086"]
[TimeControl "180+2"]
[EndTime "11:37:40 PST"]
[Termination "HansCoolNiemann won by resignation"]

1. d4 {[%clk 0:02:58.8]} 1... Nf6 {[%clk 0:02:57.9]} 2. c4 {[%clk 0:02:58.8]}
2... g6 {[%clk 0:02:33.9]} 3. Nc3 {[%clk 0:02:57.1]} 3... Bg7 {[%clk 0:02:33.7]}
4. e4 {[%clk 0:02:56.9]} 4... d6 {[%clk 0:02:34.8]} 5. Nf3 {[%clk 0:02:57.1]}
5... O-O {[%clk 0:02:35.8]} 6. Be2 {[%clk 0:02:57.7]} 6... e5 {[%clk 0:02:37]}
7. dxe5 {[%clk 0:02:59.6]} 7... dxe5 {[%clk 0:02:37.7]} 8. Qxd8 {[%clk
0:03:01.5]} 8... Rxd8 {[%clk 0:02:39.4]} 9. Bg5 {[%clk 0:03:03.4]} 9... Nbd7
{[%clk 0:02:36.9]} 10. O-O-O {[%clk 0:03:05.3]} 10... Rf8 {[%clk 0:02:37.7]} 11.
Ne1 {[%clk 0:03:00]} 11... Nc5 {[%clk 0:02:33.7]} 12. f3 {[%clk 0:02:59.5]}
12... Ne6 {[%clk 0:02:34]} 13. Be3 {[%clk 0:02:59.2]} 13... c6 {[%clk
0:02:34.8]} 14. Nc2 {[%clk 0:02:59.1]} 14... a5 {[%clk 0:02:34.4]} 15. Rd2
{[%clk 0:02:54.8]} 15... Nd7 {[%clk 0:02:33.2]} 16. Rhd1 {[%clk 0:02:53.7]}
16... Ndc5 {[%clk 0:01:59.8]} 17. b3 {[%clk 0:02:52.7]} 17... b6 {[%clk
0:01:36.8]} 18. Kb2 {[%clk 0:02:50.8]} 18... h5 {[%clk 0:01:15.4]} 19. a3 {[%clk
0:02:48.9]} 19... Bb7 {[%clk 0:01:12.2]} 20. b4 {[%clk 0:02:47]} 20... axb4
{[%clk 0:01:10.1]} 21. axb4 {[%clk 0:02:48.9]} 21... Na4+ {[%clk 0:01:11.2]} 22.
Nxa4 {[%clk 0:02:48.4]} 22... Rxa4 {[%clk 0:01:13.1]} 23. Bf2 {[%clk 0:02:48]}
23... Rfa8 {[%clk 0:01:15]} 24. Bxb6 {[%clk 0:02:43.9]} 24... Ra2+ {[%clk
0:01:11.5]} 25. Kb1 {[%clk 0:02:40.3]} 25... c5 {[%clk 0:01:00.5]} 26. Bxc5
{[%clk 0:02:26.8]} 26... Nxc5 {[%clk 0:00:43]} 27. bxc5 {[%clk 0:02:28.7]} 27...
Bf8 {[%clk 0:00:43.7]} 28. Rd8 {[%clk 0:02:18.1]} 28... Kg7 {[%clk 0:00:44.2]}
29. Rxa8 {[%clk 0:02:12.6]} 29... Rxa8 {[%clk 0:00:44.9]} 30. Rd7 {[%clk
0:02:05]} 30... Bc6 {[%clk 0:00:43.6]} 31. Rc7 {[%clk 0:02:04]} 31... Be8 {[%clk
0:00:34.3]} 32. Ne1 {[%clk 0:01:48.9]} 32... Ra4 {[%clk 0:00:22.8]} 33. Kb2
{[%clk 0:01:42.4]} 33... Rb4+ {[%clk 0:00:22.6]} 34. Kc2 {[%clk 0:01:40.6]}
34... Ba4+ {[%clk 0:00:21.9]} 35. Kc1 {[%clk 0:01:39.1]} 35... Bb3 {[%clk
0:00:21.8]} 36. Kd2 {[%clk 0:01:27.8]} 36... Bxc4 {[%clk 0:00:22.9]} 37. Kc3
{[%clk 0:01:28.3]} 37... Rb1 {[%clk 0:00:22.4]} 38. Bxc4 {[%clk 0:01:28.5]} 1-0

[Event "*** Titled Tuesday 3|2 Blitz"]
[Site "Chess.com"]
[Date "2016.02.02"]
[Round "3"]
[White "Hikaru"]
[Black "igorkovalenko"]
[Result "1-0"]
[WhiteElo "2866"]
[BlackElo "2526"]
[TimeControl "180+2"]
[EndTime "11:37:44 PST"]
[Termination "Hikaru won by resignation"]

1. g3 {[%clk 0:02:59.9]} 1... e6 {[%clk 0:03:00.9]} 2. Bg2 {[%clk 0:03:01.1]}
2... d5 {[%clk 0:03:02.8]} 3. d3 {[%clk 0:03:01.7]} 3... Nf6 {[%clk 0:03:04.7]}
4. Nd2 {[%clk 0:03:02.6]} 4... c5 {[%clk 0:03:06.6]} 5. Ngf3 {[%clk 0:03:03.5]}
5... Nc6 {[%clk 0:03:08.5]} 6. e4 {[%clk 0:03:05.1]} 6... Be7 {[%clk 0:03:10.2]}
7. O-O {[%clk 0:03:06.7]} 7... O-O {[%clk 0:03:11.4]} 8. e5 {[%clk 0:03:08.3]}
8... Nd7 {[%clk 0:03:12.9]} 9. Re1 {[%clk 0:03:10.2]} 9... b5 {[%clk 0:03:13.6]}
10. h4 {[%clk 0:03:11.8]} 10... a5 {[%clk 0:03:13.8]} 11. h5 {[%clk 0:03:12.7]}
11... b4 {[%clk 0:03:15.2]} 12. h6 {[%clk 0:03:13.4]} 12... g6 {[%clk
0:03:16.8]} 13. Nf1 {[%clk 0:03:15]} 13... Ba6 {[%clk 0:03:16.3]} 14. N1h2
{[%clk 0:03:15.2]} 14... a4 {[%clk 0:03:17.4]} 15. a3 {[%clk 0:03:11.2]} 15...
bxa3 {[%clk 0:03:17.9]} 16. bxa3 {[%clk 0:03:13.1]} 16... Re8 {[%clk 0:03:15.9]}
17. Ng4 {[%clk 0:02:48.1]} 17... Nd4 {[%clk 0:03:05.9]} 18. Bf4 {[%clk 0:02:41]}
18... Rc8 {[%clk 0:02:56]} 19. c3 {[%clk 0:02:30.5]} 19... Nxf3+ {[%clk
0:02:54.8]} 20. Bxf3 {[%clk 0:02:32.4]} 20... Qa5 {[%clk 0:02:54.7]} 21. Qd2
{[%clk 0:02:30.3]} 21... d4 {[%clk 0:02:46.7]} 22. c4 {[%clk 0:02:27.3]} 22...
Qxd2 {[%clk 0:02:48.6]} 23. Bxd2 {[%clk 0:02:28.9]} 23... Rb8 {[%clk 0:02:47.4]}
24. Bd1 {[%clk 0:02:29.6]} 24... Nb6 {[%clk 0:02:31.7]} 25. Ba5 {[%clk
0:02:30.4]} 25... Kf8 {[%clk 0:02:09.9]} 26. f4 {[%clk 0:02:28.5]} 26... Rec8
{[%clk 0:02:08.1]} 27. Re2 {[%clk 0:02:26.2]} 27... Bd8 {[%clk 0:02:08.8]} 28.
Nf2 {[%clk 0:02:17.2]} 28... Bb7 {[%clk 0:02:03.6]} 29. Rb1 {[%clk 0:01:54.5]}
29... Bc6 {[%clk 0:02:04.6]} 30. Reb2 {[%clk 0:01:54]} 30... Nd7 {[%clk
0:02:05.5]} 31. Rxb8 {[%clk 0:01:50.4]} 31... Nxb8 {[%clk 0:02:07.4]} 32. Bxd8
{[%clk 0:01:49.9]} 32... Rxd8 {[%clk 0:02:09.3]} 33. Rb6 {[%clk 0:01:38]} 33...
Rc8 {[%clk 0:02:10.4]} 34. Ng4 {[%clk 0:01:37.6]} 34... Ke7 {[%clk 0:02:06.4]}
35. Kf2 {[%clk 0:01:34.4]} 35... Kd8 {[%clk 0:02:02]} 36. Bf3 {[%clk 0:01:33.3]}
36... Bxf3 {[%clk 0:02:02.8]} 37. Kxf3 {[%clk 0:01:33.9]} 37... Kc7 {[%clk
0:02:03.8]} 38. Rb5 {[%clk 0:01:30.6]} 38... Kc6 {[%clk 0:01:54.5]} 39. Nf6
{[%clk 0:01:30.1]} 39... Rh8 {[%clk 0:01:53.4]} 40. Ne4 {[%clk 0:01:25.4]} 40...
Nd7 {[%clk 0:01:52.7]} 41. Kg4 {[%clk 0:01:26.2]} 41... Ra8 {[%clk 0:01:39.7]}
42. Kg5 {[%clk 0:01:15.4]} 42... Rd8 {[%clk 0:01:31]} 43. Nf6 {[%clk 0:01:13.6]}
43... Nf8 {[%clk 0:01:32.2]} 44. g4 {[%clk 0:01:11.1]} 44... Ra8 {[%clk
0:01:32.2]} 45. Rb1 {[%clk 0:01:12.4]} 45... Kc7 {[%clk 0:01:30.9]} 46. Kh4
{[%clk 0:01:11.2]} 46... Kc6 {[%clk 0:01:32.2]} 47. Rb5 {[%clk 0:01:12]} 47...
Rd8 {[%clk 0:01:31.3]} 48. Ra5 {[%clk 0:01:12.6]} 48... Kb6 {[%clk 0:01:32.4]}
49. Rb5+ {[%clk 0:01:11.3]} 49... Kc6 {[%clk 0:01:33.6]} 50. Ne4 {[%clk
0:01:11.8]} 50... Nd7 {[%clk 0:01:34.3]} 51. Ng5 {[%clk 0:01:13.5]} 51... f6
{[%clk 0:01:30.2]} 52. exf6 {[%clk 0:01:10.9]} 52... Rf8 {[%clk 0:01:23.3]} 53.
f7 {[%clk 0:01:11.5]} 53... e5 {[%clk 0:01:20.1]} 54. Ne6 {[%clk 0:01:12.1]}
54... Rxf7 {[%clk 0:01:20.7]} 55. Nd8+ {[%clk 0:01:13.1]} 1-0

[Event "*** Titled Tuesday 3|2 Blitz"]
[Site "Chess.com"]
[Date "2016.02.02"]
[Round "3"]
[White "Imre91"]
[Black "FabianEnglert"]
[Result "1-0"]
[WhiteElo "2507"]
[BlackElo "2337"]
[TimeControl "180+2"]
[EndTime "11:37:54 PST"]
[Termination "Imre91 won by resignation"]

1. c4 {[%clk 0:03:01.9]} 1... e6 {[%clk 0:03:00.3]} 2. Nf3 {[%clk 0:02:51]} 2...
d5 {[%clk 0:03:01.8]} 3. g3 {[%clk 0:02:46.5]} 3... dxc4 {[%clk 0:03:02.4]} 4.
Qa4+ {[%clk 0:02:47.1]} 4... Nd7 {[%clk 0:03:02.8]} 5. Qxc4 {[%clk 0:02:48.2]}
5... a6 {[%clk 0:03:04.3]} 6. a4 {[%clk 0:02:45]} 6... Rb8 {[%clk 0:02:59.2]} 7.
a5 {[%clk 0:02:44.1]} 7... Ngf6 {[%clk 0:02:29.3]} 8. Bg2 {[%clk 0:02:43.6]}
8... c5 {[%clk 0:02:30]} 9. O-O {[%clk 0:02:44.1]} 9... Bd6 {[%clk 0:02:30.7]}
10. d3 {[%clk 0:02:44.9]} 10... O-O {[%clk 0:02:31.4]} 11. Qc2 {[%clk
0:02:41.1]} 11... Qe7 {[%clk 0:02:18.4]} 12. Nbd2 {[%clk 0:02:40.9]} 12... Ne5
{[%clk 0:02:16.4]} 13. Nxe5 {[%clk 0:02:35.9]} 13... Bxe5 {[%clk 0:02:18.3]} 14.
Nc4 {[%clk 0:02:37.4]} 14... Bc7 {[%clk 0:02:17.2]} 15. Bd2 {[%clk 0:02:37.3]}
15... Bd7 {[%clk 0:02:14.7]} 16. Rab1 {[%clk 0:02:34.4]} 16... Nd5 {[%clk
0:02:11.1]} 17. Rfc1 {[%clk 0:02:33.7]} 17... Nb4 {[%clk 0:01:59.5]} 18. Qb3
{[%clk 0:02:31.6]} 18... Bc6 {[%clk 0:01:51.8]} 19. Bxb4 {[%clk 0:02:23.7]}
19... cxb4 {[%clk 0:01:52.2]} 20. Bxc6 {[%clk 0:02:25.3]} 20... bxc6 {[%clk
0:01:54.1]} 21. Nd2 {[%clk 0:02:26.1]} 21... c5 {[%clk 0:01:41.3]} 22. Qc4
{[%clk 0:02:24.6]} 22... Rb5 {[%clk 0:01:39.3]} 23. Nb3 {[%clk 0:02:24]} 23...
Rc8 {[%clk 0:01:19]} 24. d4 {[%clk 0:02:21.6]} 24... Bxa5 {[%clk 0:01:13.2]} 25.
Ra1 {[%clk 0:02:19.7]} 25... Qc7 {[%clk 0:01:00.7]} 26. dxc5 {[%clk 0:02:19.2]}
26... h6 {[%clk 0:00:53.8]} 27. e3 {[%clk 0:02:19.2]} 27... Qd8 {[%clk
0:00:33.3]} 28. h4 {[%clk 0:02:08]} 28... Bb6 {[%clk 0:00:27.2]} 29. Rxa6 {[%clk
0:02:08.1]} 29... Rbxc5 {[%clk 0:00:28.5]} 30. Nxc5 {[%clk 0:02:09.1]} 30...
Rxc5 {[%clk 0:00:30.4]} 31. Qf1 {[%clk 0:02:10.1]} 31... Rd5 {[%clk 0:00:24.5]}
32. Raa1 {[%clk 0:02:04.1]} 32... Qf6 {[%clk 0:00:22.1]} 33. b3 {[%clk
0:01:55.6]} 33... Rd2 {[%clk 0:00:21.4]} 34. Rd1 {[%clk 0:01:56.2]} 34... Rb2
{[%clk 0:00:22]} 35. Ra8+ {[%clk 0:01:48.3]} 35... Kh7 {[%clk 0:00:22.9]} 36.
Qd3+ {[%clk 0:01:49.7]} 36... g6 {[%clk 0:00:24.5]} 37. Rd2 {[%clk 0:01:50.5]}
37... Qc3 {[%clk 0:00:15.7]} 38. Rd1 {[%clk 0:01:40.1]} 38... Qf6 {[%clk
0:00:13.3]} 39. Rf1 {[%clk 0:01:39.9]} 39... Qf3 {[%clk 0:00:12.1]} 40. Rb8
{[%clk 0:01:37.1]} 40... Bc5 {[%clk 0:00:11.4]} 41. Rc8 {[%clk 0:01:34.8]} 41...
Bb6 {[%clk 0:00:11.1]} 42. Rc2 {[%clk 0:01:29.9]} 42... Qf6 {[%clk 0:00:08.9]}
43. Rxb2 {[%clk 0:01:30.4]} 43... Qxb2 {[%clk 0:00:10.8]} 44. h5 {[%clk
0:01:31.5]} 44... Kg7 {[%clk 0:00:11.3]} 45. hxg6 {[%clk 0:01:33]} 45... fxg6
{[%clk 0:00:12.6]} 46. Kg2 {[%clk 0:01:34.2]} 46... Kf6 {[%clk 0:00:11.7]} 47.
Rh1 {[%clk 0:01:32.5]} 47... h5 {[%clk 0:00:12.7]} 48. Rh4 {[%clk 0:01:33.8]}
48... e5 {[%clk 0:00:12.7]} 49. Rxb4 {[%clk 0:01:34.2]} 1-0

[Event "*** Titled Tuesday 3|2 Blitz"]
[Site "Chess.com"]
[Date "2016.02.02"]
[Round "3"]
[White "Makalexa"]
[Black "AlexanderL"]
[Result "0-1"]
[WhiteElo "2070"]
[BlackElo "2578"]
[TimeControl "180+2"]
[EndTime "11:38:12 PST"]
[Termination "AlexanderL won by checkmate"]

1. e4 {[%clk 0:03:01.9]} 1... e6 {[%clk 0:02:58]} 2. d4 {[%clk 0:03:02.1]} 2...
d5 {[%clk 0:02:58.4]} 3. Nc3 {[%clk 0:03:01.3]} 3... Nf6 {[%clk 0:02:49.2]} 4.
Bg5 {[%clk 0:02:59.6]} 4... dxe4 {[%clk 0:02:45.8]} 5. Nxe4 {[%clk 0:02:56.7]}
5... Be7 {[%clk 0:02:43.3]} 6. Bxf6 {[%clk 0:02:56.8]} 6... gxf6 {[%clk
0:02:43.9]} 7. Nf3 {[%clk 0:02:54.4]} 7... a6 {[%clk 0:02:40.9]} 8. Bd3 {[%clk
0:02:47.1]} 8... f5 {[%clk 0:02:40.4]} 9. Nc3 {[%clk 0:02:47.5]} 9... c5 {[%clk
0:02:37.5]} 10. dxc5 {[%clk 0:02:43.2]} 10... Bxc5 {[%clk 0:02:36.8]} 11. Qe2
{[%clk 0:02:44.3]} 11... Qe7 {[%clk 0:02:30.4]} 12. O-O-O {[%clk 0:02:43.1]}
12... Nc6 {[%clk 0:02:29.5]} 13. Rhe1 {[%clk 0:02:42.5]} 13... O-O {[%clk
0:02:13]} 14. Kb1 {[%clk 0:02:42.2]} 14... Kh8 {[%clk 0:02:11.1]} 15. h4 {[%clk
0:02:34.6]} 15... Qf6 {[%clk 0:02:09.2]} 16. Ng5 {[%clk 0:02:29.2]} 16... Nd4
{[%clk 0:02:04.9]} 17. Qf1 {[%clk 0:01:19]} 17... Bb4 {[%clk 0:01:59]} 18. Nce4
{[%clk 0:00:57.2]} 18... fxe4 {[%clk 0:01:53.8]} 19. Nxe4 {[%clk 0:00:58.2]}
19... Qg7 {[%clk 0:01:49.5]} 20. c3 {[%clk 0:00:59]} 20... Ba5 {[%clk
0:01:50.3]} 21. cxd4 {[%clk 0:00:55.8]} 21... Bxe1 {[%clk 0:01:50.9]} 22. Qxe1
{[%clk 0:00:55.4]} 22... Bd7 {[%clk 0:01:51.5]} 23. Ng5 {[%clk 0:00:55.7]} 23...
h6 {[%clk 0:01:50.3]} 24. Nf3 {[%clk 0:00:34.9]} 24... Bc6 {[%clk 0:01:47.7]}
25. Ne5 {[%clk 0:00:34.5]} 25... Rad8 {[%clk 0:01:41.4]} 26. Bc2 {[%clk
0:00:33.3]} 26... Rd6 {[%clk 0:01:37.3]} 27. Rd3 {[%clk 0:00:26.7]} 27... Qf6
{[%clk 0:01:28]} 28. Qe3 {[%clk 0:00:19.6]} 28... Qg7 {[%clk 0:00:43.3]} 29. Qd2
{[%clk 0:00:16.5]} 29... Be4 {[%clk 0:00:36.4]} 30. Rg3 {[%clk 0:00:13.7]} 30...
Bxc2+ {[%clk 0:00:36.3]} 31. Qxc2 {[%clk 0:00:13.1]} 31... Qh7 {[%clk
0:00:34.3]} 32. Rd3 {[%clk 0:00:13.4]} 32... f6 {[%clk 0:00:29.5]} 33. Ng4
{[%clk 0:00:13.5]} 33... Rc6 {[%clk 0:00:27.4]} 34. Qd1 {[%clk 0:00:11.7]} 34...
Rfc8 {[%clk 0:00:27.7]} 35. Ne3 {[%clk 0:00:04.9]} 35... Qxd3+ {[%clk
0:00:25.2]} 36. Qxd3 {[%clk 0:00:03.9]} 36... Rc1# {[%clk 0:00:27.1]} 0-1

[Event "*** Titled Tuesday 3|2 Blitz"]
[Site "Chess.com"]
[Date "2016.02.02"]
[Round "3"]
[White "arnacman"]
[Black "Journey_to_GrandMaster_YT"]
[Result "1-0"]
[WhiteElo "2245"]
[BlackElo "2272"]
[TimeControl "180+2"]
[EndTime "11:38:30 PST"]
[Termination "arnacman won by resignation"]

1. e4 {[%clk 0:03:01.9]} 1... d6 {[%clk 0:02:52.6]} 2. d4 {[%clk 0:03:01.4]}
2... Nf6 {[%clk 0:02:53.7]} 3. Nc3 {[%clk 0:03:01.6]} 3... e5 {[%clk 0:02:55.1]}
4. Nf3 {[%clk 0:03:02.5]} 4... Nbd7 {[%clk 0:02:56.3]} 5. Bc4 {[%clk 0:03:01.1]}
5... Be7 {[%clk 0:02:57.5]} 6. a4 {[%clk 0:03:01.8]} 6... c6 {[%clk 0:02:57.5]}
7. O-O {[%clk 0:02:58.3]} 7... O-O {[%clk 0:02:58.4]} 8. h3 {[%clk 0:02:56.9]}
8... a5 {[%clk 0:02:58.9]} 9. Qe2 {[%clk 0:02:52.3]} 9... exd4 {[%clk
0:02:58.4]} 10. Nxd4 {[%clk 0:02:52.3]} 10... Ne5 {[%clk 0:02:59.8]} 11. Bb3
{[%clk 0:02:50.6]} 11... c5 {[%clk 0:03:00.7]} 12. Ndb5 {[%clk 0:02:47.3]} 12...
Be6 {[%clk 0:02:50.4]} 13. Bxe6 {[%clk 0:02:24.2]} 13... fxe6 {[%clk 0:02:51]}
14. Bf4 {[%clk 0:02:13.7]} 14... Nfd7 {[%clk 0:02:42.1]} 15. Bg3 {[%clk
0:02:09.2]} 15... Qb6 {[%clk 0:02:41.2]} 16. Rad1 {[%clk 0:02:05.4]} 16... Rad8
{[%clk 0:02:31.7]} 17. Kh1 {[%clk 0:02:05.6]} 17... Rf6 {[%clk 0:02:26.7]} 18.
Bh4 {[%clk 0:01:59.5]} 18... Rf7 {[%clk 0:02:20.3]} 19. Bxe7 {[%clk 0:01:59.9]}
19... Rxe7 {[%clk 0:02:21]} 20. Rxd6 {[%clk 0:02:00.1]} 20... Nc6 {[%clk
0:02:21.7]} 21. Rfd1 {[%clk 0:01:57.1]} 21... Nde5 {[%clk 0:02:16.1]} 22. f4
{[%clk 0:01:53.3]} 22... Ng6 {[%clk 0:02:03.9]} 23. f5 {[%clk 0:01:42]} 23...
Nf8 {[%clk 0:01:22.5]} 24. fxe6 {[%clk 0:01:19.9]} 24... Rxe6 {[%clk 0:01:04.2]}
25. Qc4 {[%clk 0:01:18.2]} 25... Ne5 {[%clk 0:00:48.1]} 26. Qxe6+ {[%clk
0:01:16.4]} 26... Nxe6 {[%clk 0:00:45.6]} 27. Rxb6 {[%clk 0:01:16.5]} 27... Re8
{[%clk 0:00:28.4]} 28. Nd6 {[%clk 0:01:16.5]} 28... Rf8 {[%clk 0:00:24.6]} 29.
Nf5 {[%clk 0:01:16.4]} 29... Nf4 {[%clk 0:00:21.3]} 30. Rf1 {[%clk 0:01:13.3]}
30... Nfg6 {[%clk 0:00:15.4]} 31. Nd5 {[%clk 0:01:10.1]} 31... Kh8 {[%clk
0:00:12.6]} 32. Rxb7 {[%clk 0:01:09.5]} 32... Nc6 {[%clk 0:00:11.3]} 33. c3
{[%clk 0:01:06.4]} 33... Nce5 {[%clk 0:00:11.6]} 34. Rxg7 {[%clk 0:01:05.9]}
34... Nc4 {[%clk 0:00:08.7]} 35. Rb7 {[%clk 0:01:05.2]} 35... Nd2 {[%clk
0:00:08.8]} 36. Re1 {[%clk 0:01:05.1]} 36... Ne5 {[%clk 0:00:08]} 37. Re7 {[%clk
0:00:55.4]} 37... Nd3 {[%clk 0:00:08.3]} 38. Re2 {[%clk 0:00:52.5]} 38... Nf1
{[%clk 0:00:07.4]} 39. Kg1 {[%clk 0:00:51.5]} 39... Nc1 {[%clk 0:00:02.9]} 40.
Re1 {[%clk 0:00:50.2]} 40... Nd3 {[%clk 0:00:02.5]} 41. Rxf1 {[%clk 0:00:50.6]}
41... Nxb2 {[%clk 0:00:03.1]} 42. Nh6 {[%clk 0:00:50.5]} 42... Rxf1+ {[%clk
0:00:03.5]} 43. Kxf1 {[%clk 0:00:50.9]} 43... Nxa4 {[%clk 0:00:04.2]} 44. Nf6
{[%clk 0:00:50.6]} 1-0

[Event "*** Titled Tuesday 3|2 Blitz"]
[Site "Chess.com"]
[Date "2016.02.02"]
[Round "3"]
[White "Parthenope"]
[Black "AndrewMcStone"]
[Result "0-1"]
[WhiteElo "1737"]
[BlackElo "2021"]
[TimeControl "180+2"]
[EndTime "11:38:31 PST"]
[Termination "AndrewMcStone won on time"]

1. e4 {[%clk 0:03:01.9]} 1... d5 {[%clk 0:03:00.6]} 2. exd5 {[%clk 0:03:01.5]}
2... Nf6 {[%clk 0:03:01.5]} 3. Bb5+ {[%clk 0:03:00.9]} 3... Nbd7 {[%clk
0:03:00.1]} 4. Nf3 {[%clk 0:02:33.8]} 4... a6 {[%clk 0:02:53.3]} 5. Be2 {[%clk
0:02:26.8]} 5... b5 {[%clk 0:02:44]} 6. a4 {[%clk 0:02:01.4]} 6... bxa4 {[%clk
0:02:41.4]} 7. c4 {[%clk 0:01:52.6]} 7... Nb6 {[%clk 0:02:26.5]} 8. d4 {[%clk
0:01:45.4]} 8... e6 {[%clk 0:02:22.2]} 9. dxe6 {[%clk 0:01:39]} 9... Bxe6 {[%clk
0:02:22.5]} 10. d5 {[%clk 0:01:26.6]} 10... Bf5 {[%clk 0:02:17.2]} 11. Nd4
{[%clk 0:01:19.3]} 11... Bb4+ {[%clk 0:01:50.8]} 12. Bd2 {[%clk 0:01:12.9]}
12... Bxd2+ {[%clk 0:01:47.1]} 13. Nxd2 {[%clk 0:00:59.4]} 13... Bg6 {[%clk
0:01:42.5]} 14. N2f3 {[%clk 0:00:56.2]} 14... O-O {[%clk 0:01:39.2]} 15. O-O
{[%clk 0:00:55.4]} 15... Re8 {[%clk 0:01:34.1]} 16. Qd2 {[%clk 0:00:47.8]} 16...
Ne4 {[%clk 0:01:29.6]} 17. Qa5 {[%clk 0:00:26.4]} 17... Qd6 {[%clk 0:01:15.9]}
18. Rac1 {[%clk 0:00:21.5]} 18... Nc5 {[%clk 0:01:06.3]} 19. Rfe1 {[%clk
0:00:18]} 19... Re4 {[%clk 0:00:54.6]} 20. Bf1 {[%clk 0:00:11.3]} 20... Rae8
{[%clk 0:00:51]} 21. g3 {[%clk 0:00:10.7]} 21... h6 {[%clk 0:00:15.3]} 22. h4
{[%clk 0:00:08]} 22... Rxe1 {[%clk 0:00:14.8]} 23. Rxe1 {[%clk 0:00:08.4]} 23...
Rxe1 {[%clk 0:00:15.9]} 24. Qxe1 {[%clk 0:00:08.5]} 24... Kh7 {[%clk 0:00:14.9]}
25. Qe8 {[%clk 0:00:05.7]} 25... Qf6 {[%clk 0:00:11.4]} 26. Qe3 {[%clk
0:00:05.9]} 26... Ne4 {[%clk 0:00:11.5]} 27. Qa3 {[%clk 0:00:03.9]} 27... Nd6
{[%clk 0:00:10.3]} 28. c5 {[%clk 0:00:04]} 28... Nxd5 {[%clk 0:00:09.8]} 29.
cxd6 {[%clk 0:00:04]} 29... cxd6 {[%clk 0:00:11.7]} 30. Qxa4 {[%clk 0:00:02.3]}
30... Be4 {[%clk 0:00:13.1]} 31. Bg2 {[%clk 0:00:02.4]} 31... Nb6 {[%clk
0:00:14]} 32. Qxa6 {[%clk 0:00:03.2]} 32... Nd5 {[%clk 0:00:15]} 33. Qe2 {[%clk
0:00:03.9]} 33... Bg6 {[%clk 0:00:15.1]} 34. Kh2 {[%clk 0:00:04]} 34... Ne7
{[%clk 0:00:15.4]} 35. b4 {[%clk 0:00:02.9]} 35... Bh5 {[%clk 0:00:16.5]} 36.
Qe3 {[%clk 0:00:03.2]} 36... Ng6 {[%clk 0:00:16.8]} 0-1